Cogmind - Beta 16 @@@ ROGUE MODE // 2025.11.06 @ 07:00:10 Player: Naughtyusername Result: Destroyed by Hellfire Trap Performance ------------- Evolutions (9) 4500 Regions Visited (15) 3000 Robots Destroyed (37) 185 Value Destroyed (1231) 1231 Prototype IDs (10) 200 Alien Tech Used (0) 0 Bonus (1470) 1470 TOTAL SCORE: 10586 Bonus ------- Pacifist 470 Entered DSFs 1000 Cogmind --------- Core Integrity 0/1600 Matter 158/300 Energy 98/100 System Corruption 83% Temperature Cool (0) Movement Core (50) Location -1/Access Parts ------- > --- POWER (3) -------- (None) > --- PROPULSION (10) -- (None) > --- UTILITY (10) ----- Graphene Brace > --- WEAPON (2) ------- (None) > --- INVENTORY (5) ---- ECM Suite Heavy Phase Cannon Heavy Rocket Launcher Improved Datajack Peak State ------------ > --- POWER ------------ Light Antimatter Reactor Light Antimatter Reactor Improved Fusion Compressor > --- PROPULSION ------- Xenon Bombardment Thruster Xenon Bombardment Thruster Xenon Bombardment Thruster Nuclear Pulse Array Improved Diametric Drive Impulse Thruster Array > --- UTILITY ---------- Machine Analyzer Improved Salvage Targeting Computer Improved Salvage Targeting Computer Improved Salvage Targeting Computer Experimental Targeting Computer Advanced Melee Analysis Suite Core Analyzer Advanced Cloaking Device Graphene Brace Ghost Barrier > --- WEAPON ----------- Advanced Micro-nuke Launcher Nanosword > --- INVENTORY -------- Small Storage Unit Heavy Phase Cannon Heavy Rocket Launcher Heavy Rocket Launcher Improved Datajack [Rating: 144] Favorites ----------- Power Compact Particle Reactor Engine Backup Power III Power Core Improved Fusion Compressor Reactor Compact Particle Reactor Propulsion Xenon Bombardment Thruster Hover Unit Gravmag System Flight Unit Xenon Bombardment Thruster Utility Experimental Targeting Computer Device Graphene Brace Processor Experimental Targeting Computer Hackware Ghost Barrier Protection Experimental Weapon Shielding Weapon Nanosword Energy Cannon Heavy Phase Cannon Ballistic Gun Helical Railgun Launcher Advanced Micro-nuke Launcher Slashing Weapon Nanosword Piercing Weapon Force Lance Build | -11 -10 -10 -9 -9 -8 -7 -7 -6 -5 -5 -4 -3 -3 -2 -1 ------- Run | Yrd Mat Min Mat Min Mat Fac DSF Fac Fac DSF Fac Res Tes Res Acc Slots Evolved 18 | . . . 2 . 2 2 . 2 2 . 2 2 . 2 2 Power 2 | . . . . . . . . . 1 . . . . . 1 Propulsion 8 | . . . 1 . 1 1 . 1 . . 1 1 . 1 1 Utility 8 | . . . 1 . 1 1 . 1 1 . 1 1 . 1 . Weapon . | . . . . . . . . . . . . . . . . Parts Attached 48 | . . . . . 3 . 6 2 1 . 4 5 15 5 7 Power 5 | . . . . . . . . . . . 1 . 1 . 3 Engine . | . . . . . . . . . . . . . . . . Core 2 | . . . . . . . . . . . 1 . . . 1 Reactor 3 | . . . . . . . . . . . . . 1 . 2 Propulsion 15 | . . . . . . . 1 1 . . 1 . 8 2 2 Treads . | . . . . . . . . . . . . . . . . Leg . | . . . . . . . . . . . . . . . . Wheel . | . . . . . . . . . . . . . . . . Hover 2 | . . . . . . . 1 1 . . . . . . . Flight 13 | . . . . . . . . . . . 1 . 8 2 2 Utility 18 | . . . . . 2 . 5 . 1 . . 3 4 3 . Device 3 | . . . . . . . . . . . . . 2 1 . Storage . | . . . . . . . . . . . . . . . . Processor 12 | . . . . . 1 . 5 . 1 . . 3 . 2 . Hackware 2 | . . . . . 1 . . . . . . . 1 . . Protection 1 | . . . . . . . . . . . . . 1 . . Artifact . | . . . . . . . . . . . . . . . . Weapon 10 | . . . . . 1 . . 1 . . 2 2 2 . 2 Energy Gun . | . . . . . . . . . . . . . . . . Energy Cannon 1 | . . . . . . . . . . . . . . . 1 Ballistic Gun 1 | . . . . . . . . . . . . 1 . . . Ballistic Cannon . | . . . . . . . . . . . . . . . . Launcher 4 | . . . . . . . . 1 . . 1 . 1 . 1 Special Weapon . | . . . . . . . . . . . . . . . . Impact Weapon . | . . . . . . . . . . . . . . . . Slashing Weapon 3 | . . . . . 1 . . . . . 1 . 1 . . Piercing Weapon 1 | . . . . . . . . . . . . 1 . . . Special Melee Weapon . | . . . . . . . . . . . . . . . . Unidentified Prototypes 10 | . . . . . . . 1 . . . 1 1 7 . . Parts Lost 39 | . . . . . 2 . . 1 . 1 2 . 10 2 21 Power 6 | . . . . . . . . . . . . . 2 . 4 Propulsion 13 | . . . . . . . . 1 . . 1 . 5 1 5 Utility 16 | . . . . . 2 . . . . 1 . . 3 1 9 Weapon 4 | . . . . . . . . . . . 1 . . . 3 Highest Loss Streak 15 | . . . . . 2 . . 1 . 1 1 . 8 2 15 To Critical Strikes . | . . . . . . . . . . . . . . . . Average Backups 4 | . . . . 1 3 5 5 4 5 5 4 5 5 5 4 Power . | . . . . . . . . . . . . . . . . Propulsion . | . . . . . . . . . . . . . . . . Utility . | . . . . . . . . . . 1 1 1 1 1 1 Weapon 2 | . . . . 1 3 4 4 3 3 3 2 3 3 3 2 Tool/Special . | . . . . . . . . . . . . . . . . Unused Backups 4 | . . . . . . . . . 1 . . . . . 3 Power . | . . . . . . . . . . . . . . . . Propulsion . | . . . . . . . . . . . . . . . . Utility 2 | . . . . . . . . . . . . . . . 2 Weapon 1 | . . . . . . . . . 1 . . . . . . Tool/Special 1 | . . . . . . . . . . . . . . . 1 Average Slot Usage (%) 33 | . . . . . 13 7 28 36 26 25 25 23 62 61 51 Flight 6 | . . . . . . . . . . . 1 . 17 15 13 Device 2 | . . . . . . . . . . . . . 3 4 7 Processor 17 | . . . . . 5 . 18 29 26 25 21 23 25 23 18 Hackware 1 | . . . . . 5 . . . . . . . 3 4 2 Slashing Weapon 2 | . . . . . 1 7 7 3 . . 1 . 3 4 2 Peak Build Rating 144 | . . . . . 10 4 37 39 29 29 50 44 125 124 144 Average Rating 46 | . . . . . 5 4 20 31 27 24 30 32 75 104 92 On Entrance 25 | . . . . . . 4 4 37 25 29 23 23 35 101 124 Avg Prop Armor Cover (%) 18 | . . . . . . . 21 21 . . . . 14 . 19 Naked Turns 315 | . 27 53 99 87 49 . . . . . . . . . . Heaviest Build 44 | . . . . . 2 2 2 2 . . 7 . 31 25 44 Greatest Support 54 | 3 3 3 3 3 3 3 9 3 3 3 6 3 47 42 54 Greatest Overweight (x) 3 | . . . . . . . . . . . 2 . 2 . 3 Average Overweight (x) . | . . . . . . . . . . . . . . . . Largest Inventory Capacity 5 | 5 5 5 5 5 5 5 5 5 5 5 5 5 5 5 5 Average Capacity 5 | 5 5 5 5 5 5 5 5 5 5 5 5 5 5 5 5 Most Carried 5 | . . . 1 2 5 5 5 5 5 5 5 5 5 5 5 Average Carried 4 | . . . . 1 3 5 5 4 4 5 4 5 5 5 4 Final Capacity 5 | 5 5 5 5 5 5 5 5 5 5 5 5 5 5 5 5 Final Carried 5 | . . . 1 2 5 5 5 5 5 5 5 5 5 5 4 Class Distribution -------------------- 66% | Mutant 16% | Hacker-Sprinter 8% | Scavenger-Sprinter 4% | Scavenger-Mutant 3% | Hacker-Mutant Dominant Class ---------------- Mutant | -10/Materials Mutant | -10/Mines Mutant | -9/Materials Mutant | -9/Mines Mutant | -8/Materials Mutant | -7/Factory Mutant | -7/DSF Mutant | -6/Factory Mutant | -5/Factory Mutant | -5/DSF Mutant | -4/Factory Mutant | -3/Research Scavenger-Mutant | -3/Testing Hacker-Sprinter | -2/Research Hacker-Sprinter | -1/Access Resources | -11 -10 -10 -9 -9 -8 -7 -7 -6 -5 -5 -4 -3 -3 -2 -1 ----------- Run | Yrd Mat Min Mat Min Mat Fac DSF Fac Fac DSF Fac Res Tes Res Acc Matter Collected 703 | 112 . . 50 . 30 . 60 . . . 1 . 256 11 183 Remotely . | . . . . . . . . . . . . . . . . Salvage Created 775 | . . . . . 32 . 38 55 . . 47 . 355 64 184 Parts 59 | . . . . . 5 . 3 7 . . 6 . 15 7 16 Haulers Intercepted . | . . . . . . . . . . . . . . . . Recyclers Shooed . | . . . . . . . . . . . . . . . . Parts Field Recycled . | . . . . . . . . . . . . . . . . Retrieved Matter . | . . . . . . . . . . . . . . . . Parts Self-Destructed . | . . . . . . . . . . . . . . . . Prevented . | . . . . . . . . . . . . . . . . Parts Restored . | . . . . . . . . . . . . . . . . Kills | -11 -10 -10 -9 -9 -8 -7 -7 -6 -5 -5 -4 -3 -3 -2 -1 ------- Run | Yrd Mat Min Mat Min Mat Fac DSF Fac Fac DSF Fac Res Tes Res Acc Combat Hostiles Destroyed 28 | . . . . . . . 1 4 . . 5 . 4 4 10 Melee 7 | . . . . . . . 1 . . . . . 4 1 1 AOE 21 | . . . . . . . . 4 . . 5 . . 3 9 Classes Destroyed 7 | . . . . . 1 . 1 2 . . 1 . 1 . 1 Worker 5 | . . . . . 2 . . . . . 1 . . 1 1 Builder 2 | . . . . . . . . . . . 1 . . 1 . Recycler 1 | . . . . . . . . . . . . . 1 . . Watcher 1 | . . . . . . . . 1 . . . . . . . Swarmer 26 | . . . . . . . . 4 . . 5 . 4 4 9 Grunt 1 | . . . . . . . 1 . . . . . . . . Programmer 1 | . . . . . . . . . . . . . . . 1 Best Kill Streak 7 | . . . . . 2 . 1 4 . . 7 . 5 6 5 Combat Bots Only 5 | . . . . . . . 1 4 . . 5 . 4 4 5 Max Kills in Single Turn 3 | . . . . . 1 . 1 2 . . 3 . 1 2 3 Gunslinging . | . . . . . . . . . . . . . . . . Exploded 3 | . . . . . . . . 2 . . 2 . . 2 3 Melee 1 | . . . . . . . 1 . . . . . 1 1 1 Uniques/NPCs Destroyed . | . . . . . . . . . . . . . . . . Combat | -11 -10 -10 -9 -9 -8 -7 -7 -6 -5 -5 -4 -3 -3 -2 -1 -------- Run | Yrd Mat Min Mat Min Mat Fac DSF Fac Fac DSF Fac Res Tes Res Acc Hostile Shots Fired 475 | . . 34 34 10 23 . 2 35 1 9 125 4 90 27 81 Missed 215 | . . 11 17 4 11 . . 15 . 1 65 2 37 13 39 Hits 260 | . . 23 17 6 12 . 2 20 1 8 60 2 53 14 42 Melee 4 | . . . . 1 . . 2 1 . . . . . . . Projectile 256 | . . 23 17 5 12 . . 19 1 8 60 2 53 14 42 Critical Strikes 10 | . . . . . 1 . 1 . . 1 4 . 2 1 . Actively Blocked 3 | . . . . . . . . . . . . . 2 1 . Damage Taken 6935 | . . 193 240 90 233 . 51 281 22 126 1137 49 1163 477 2873 Core 4327 | . . 193 240 90 221 . 51 134 22 126 826 48 578 186 1612 Absorbed by Shields 49 | . . . . . . . 18 . . 19 . . 12 . . Redirected to Shielding 121 | . . . . . . . . . . . . . 63 58 . Core Remaining (%) 62 | 100 . 22 . 17 59 . 92 84 . 85 28 . 51 87 . Volleys Fired 25 | . . . . . . . . 5 . . 3 . . 3 14 Largest 1 | . . . . . . . . 1 . . 1 . . 1 1 Hottest 90 | . . . . . . . . 33 . . 39 . . 30 90 Shots Fired 23 | . . . . . . . . 5 . . 3 . . 3 12 Gun . | . . . . . . . . . . . . . . . . Cannon 6 | . . . . . . . . . . . . . . . 6 Launcher 17 | . . . . . . . . 5 . . 3 . . 3 6 Special . | . . . . . . . . . . . . . . . . Kinetic . | . . . . . . . . . . . . . . . . Thermal 6 | . . . . . . . . . . . . . . . 6 Explosive 17 | . . . . . . . . 5 . . 3 . . 3 6 Electromagnetic . | . . . . . . . . . . . . . . . . Robot Hit Streak 5 | . . . . . . . . 4 . . 5 . . . 1 Robot Miss Streak 4 | . . . . . . . . 1 . . . . . 1 4 Penetration Max . | . . . . . . . . . . . . . . . . Secondary Targets . | . . . . . . . . . . . . . . . . Shots Hit Robots 29 | . . . . . 3 . 1 5 . . 1 . 16 1 2 Core Hits 49 | . . . 1 . 2 . 1 8 . . 7 . 6 6 18 Critical Kills . | . . . . . . . . . . . . . . . . Critical Parts Destroyed . | . . . . . . . . . . . . . . . . Critical Strikes . | . . . . . . . . . . . . . . . . Melee Attacks 56 | . . . . . 5 . 3 5 . . . . 29 3 11 Impact . | . . . . . . . . . . . . . . . . Slashing 56 | . . . . . 5 . 3 5 . . . . 29 3 11 Piercing . | . . . . . . . . . . . . . . . . Sneak Attacks 4 | . . . . . 2 . . . . . . . 2 . . Combat Hostiles . | . . . . . . . . . . . . . . . . Follow-up Attacks . | . . . . . . . . . . . . . . . . Damage Inflicted 4871 | . . . 38 . 166 . 37 554 . . 609 3 1165 807 1492 Guns . | . . . . . . . . . . . . . . . . Cannons . | . . . . . . . . . . . . . . . . Explosions 2991 | . . . . . . . . 518 . . 609 . . 738 1126 Melee 1527 | . . . . . 166 . 37 36 . . . . 1165 69 54 Ramming 353 | . . . 38 . . . . . . . . 3 . . 312 Kinetic . | . . . . . . . . . . . . . . . . Thermal . | . . . . . . . . . . . . . . . . Explosive 2991 | . . . . . . . . 518 . . 609 . . 738 1126 Electromagnetic . | . . . . . . . . . . . . . . . . Impact . | . . . . . . . . . . . . . . . . Slashing 1527 | . . . . . 166 . 37 36 . . . . 1165 69 54 Piercing . | . . . . . . . . . . . . . . . . Highest Corruption 83 | . . . 3 3 . . . . . 3 3 . 4 . 83 Average Corruption 29 | . . . 2 3 . . . . . 1 2 . 2 . 70 Corruption Purged . | . . . . . . . . . . . . . . . . Corruption Blocked . | . . . . . . . . . . . . . . . . Effects 20 | . . . . 2 . . . . . . . . 1 . 17 Message Errors 2 | . . . . . . . . . . . . . . . 2 Matter Fused 5 | . . . . . . . . . . . . . . . 5 Heat Flow Errors 1 | . . . . 1 . . . . . . . . . . . Energy Discharges 2 | . . . . . . . . . . . . . 1 . 1 Parts Rejected 1 | . . . . . . . . . . . . . . . 1 Data Loss (major) 1 | . . . . 1 . . . . . . . . . . . Alerts 1 | . . . . . . . . . . . . . . . 1 Misdirections 5 | . . . . . . . . . . . . . . . 5 Weapon Failures 2 | . . . . . . . . . . . . . . . 2 Overload Shots . | . . . . . . . . . . . . . . . . Overflow Damage 335 | . . . . . 3 . . 3 . . 52 . 142 100 35 Projectiles . | . . . . . . . . . . . . . . . . Explosions 190 | . . . . . . . . 3 . . 52 . . 100 35 Melee 145 | . . . . . 3 . . . . . . . 142 . . Knockbacks . | . . . . . . . . . . . . . . . . Impact . | . . . . . . . . . . . . . . . . Kinetic . | . . . . . . . . . . . . . . . . Secondary . | . . . . . . . . . . . . . . . . Self-Inflicted Damage 565 | . . . 17 . . . . . . . . 1 . 63 484 Shots 4 | . . . . . . . . . . . . . . 1 3 Rammed 13 | . . . 12 . . . . . . . . 1 . . . Targets Rammed 13 | . . . 12 . . . . . . . . 1 . . . Kicked . | . . . . . . . . . . . . . . . . Crushed . | . . . . . . . . . . . . . . . . Highest Temperature 309 | . . . . 87 . . 158 . . . 309 . 43 . 297 Average Temperature 54 | . . . . 45 . . 68 . . . 171 . 24 . 49 Received Heat Transfer 393 | . . 15 102 30 63 . . 75 . . 36 9 . 18 45 Siege Activations . | . . . . . . . . . . . . . . . . Martial Activations . | . . . . . . . . . . . . . . . . Shielding Activations . | . . . . . . . . . . . . . . . . Robots Disrupted . | . . . . . . . . . . . . . . . . Combat Hostiles . | . . . . . . . . . . . . . . . . Robots Corrupted . | . . . . . . . . . . . . . . . . Combat Hostiles . | . . . . . . . . . . . . . . . . Parts Fried . | . . . . . . . . . . . . . . . . Impact Corruptions . | . . . . . . . . . . . . . . . . Robots Melted . | . . . . . . . . . . . . . . . . Combat Hostiles . | . . . . . . . . . . . . . . . . Parts Melted . | . . . . . . . . . . . . . . . . Heat Transferred . | . . . . . . . . . . . . . . . . Parts Sabotaged 3 | . . . . . . . . 3 . . . . . . . Parts Stolen . | . . . . . . . . . . . . . . . . Parts Stripped . | . . . . . . . . . . . . . . . . Power Chain Reactions . | . . . . . . . . . . . . . . . . Alert | -11 -10 -10 -9 -9 -8 -7 -7 -6 -5 -5 -4 -3 -3 -2 -1 ------- Run | Yrd Mat Min Mat Min Mat Fac DSF Fac Fac DSF Fac Res Tes Res Acc Maximum Alert Level 1 | . . . . . . . . 1 . . 1 . . 1 1 Low Security (%) 84 | 100 100 100 100 100 100 100 100 82 100 100 60 100 100 35 65 Level 1 15 | . . . . . . . . 17 . . 39 . . 64 34 Level 2 . | . . . . . . . . . . . . . . . . Level 3 . | . . . . . . . . . . . . . . . . Level 4 . | . . . . . . . . . . . . . . . . Level 5 . | . . . . . . . . . . . . . . . . High Security . | . . . . . . . . . . . . . . . . Max Security . | . . . . . . . . . . . . . . . . Sterilizations 1 | . . . . . . . 1 . . . . . . . . Peak Influence 288 | . . 20 30 16 30 12 44 223 104 67 227 100 113 265 288 Initial 145 | . . . 7 11 . . 8 23 104 62 35 100 50 . 145 Average 82 | . . 4 4 6 9 3 24 58 97 61 173 98 64 166 168 Influence Increases 1645 | . . 30 30 15 57 17 36 252 5 15 247 . 154 303 484 Destroy 0b10 Robot/C 560 | . . . . . . . 20 80 . . 100 . 80 80 200 Destroy 0b10 Robot/NC 50 | . . . . . 10 . . 5 . . 10 . 10 10 5 Destroy Leader 72 | . . . . . . . . 12 . . 10 . 10 10 30 Successful Hack 70 | . . . . . . 17 . . 5 . . . 16 32 . Disable Machine 120 | . . . . . . . . 15 . . 15 . 30 30 30 Destroy Structure 368 | . . . . . 2 . 1 20 . . 52 . 8 111 174 Partial Spotted 45 | . . . . . 30 . . . . . 15 . . . . Lose Combat Pursuer 360 | . . 30 30 15 15 . 15 120 . 15 45 . . 30 45 Influence Decreases 1406 | . . 10 20 45 57 5 4 83 129 37 122 102 244 60 488 Entered New Map 455 | . . . 13 19 . . 4 21 109 27 32 92 40 . 98 Time Decay 584 | . . 10 7 26 41 5 . 55 20 . 70 10 120 40 180 Lost Part 367 | . . . . . 16 . . 7 . 10 20 . 84 20 210 Squads Dispatched 20 | . 1 . 3 . 1 1 . 3 . 1 3 . 2 1 4 Investigation 7 | . 1 . . . 1 1 . 1 . . . . 1 . 2 Extermination 3 | . . . . . . . . . . . . . 1 1 1 Reinforcement 8 | . . . 3 . . . . . . 1 3 . . . 1 Assault 2 | . . . . . . . . 2 . . . . . . . Garrison . | . . . . . . . . . . . . . . . . Intercept . | . . . . . . . . . . . . . . . . Searches Triggered . | . . . . . . . . . . . . . . . . Construction Impeded . | . . . . . . . . . . . . . . . . Haulers Reinforced 1 | . . . . . . . . . . . . . . . 1 Active Scanning Responses . | . . . . . . . . . . . . . . . . Cargo Convoy Interrupts . | . . . . . . . . . . . . . . . . Stealth | -11 -10 -10 -9 -9 -8 -7 -7 -6 -5 -5 -4 -3 -3 -2 -1 --------- Run | Yrd Mat Min Mat Min Mat Fac DSF Fac Fac DSF Fac Res Tes Res Acc Distress Signals 10 | . . . 1 . 2 . . 2 . . 2 . 2 . 1 Communications Jammed . | . . . . . . . . . . . . . . . . Distress Signals . | . . . . . . . . . . . . . . . . Times Spotted 147 | . . 6 20 4 12 . 9 17 1 1 24 1 15 13 24 Peak Tracking Total 15 | . . 5 15 2 13 . 8 10 2 1 13 1 6 8 10 Tactical Retreats 16 | . . 2 1 1 1 . 1 2 . 1 2 . . 2 3 Traps | -11 -10 -10 -9 -9 -8 -7 -7 -6 -5 -5 -4 -3 -3 -2 -1 ------- Run | Yrd Mat Min Mat Min Mat Fac DSF Fac Fac DSF Fac Res Tes Res Acc Traps Triggered 7 | . 1 . . . . . 2 . . 2 . . 1 . 1 Indirectly . | . . . . . . . . . . . . . . . . Trap Hack Attempts . | . . . . . . . . . . . . . . . . Triggered . | . . . . . . . . . . . . . . . . Disarmed . | . . . . . . . . . . . . . . . . Reprogrammed . | . . . . . . . . . . . . . . . . Reused . | . . . . . . . . . . . . . . . . Traps Extracted . | . . . . . . . . . . . . . . . . Installed . | . . . . . . . . . . . . . . . . Triggered . | . . . . . . . . . . . . . . . . Machines | -11 -10 -10 -9 -9 -8 -7 -7 -6 -5 -5 -4 -3 -3 -2 -1 ---------- Run | Yrd Mat Min Mat Min Mat Fac DSF Fac Fac DSF Fac Res Tes Res Acc Machines Disabled 8 | . . . . . . . . 1 . . 1 . 2 2 2 Max in Single Turn 1 | . . . . . . . . 1 . . 1 . 1 1 1 Garrison Access 1 | . . . . . . . . 1 . . . . . . . Energy Cycler 1 | . . . . . . . . . . . . . . . 1 Machines Repaired . | . . . . . . . . . . . . . . . . Machines Dismantled . | . . . . . . . . . . . . . . . . Machines Sabotaged . | . . . . . . . . . . . . . . . . Overloaded Fab Kills . | . . . . . . . . . . . . . . . . Hacking | -11 -10 -10 -9 -9 -8 -7 -7 -6 -5 -5 -4 -3 -3 -2 -1 --------- Run | Yrd Mat Min Mat Min Mat Fac DSF Fac Fac DSF Fac Res Tes Res Acc Machines Accessed 21 | . . . . . 1 5 . 2 3 . . . 2 4 4 Terminals 13 | . . . . . 1 3 . 1 1 . . . 1 3 3 Fabricators 2 | . . . . . . 1 . . 1 . . . . . . Repair Stations 2 | . . . . . . 1 . . . . . . 1 . . Recycling Units 2 | . . . . . . . . . . . . . . 1 1 Scanalyzers . | . . . . . . . . . . . . . . . . Garrison Access 2 | . . . . . . . . 1 1 . . . . . . Total Hacks 61 | . . . . . 5 12 . 4 7 . . . 8 13 12 Successful 12 | . . . . . . 4 . . 2 . . . 2 4 . Failed 49 | . . . . . 5 8 . 4 5 . . . 6 9 12 Catastrophic 11 | . . . . . 1 2 . 2 1 . . . 1 2 2 Database Lockouts . | . . . . . . . . . . . . . . . . Manual 24 | . . . . . 5 3 . 2 . . . . 2 9 3 Terminals 43 | . . . . . 5 7 . 1 5 . . . 3 12 10 Fabricators 4 | . . . . . . 3 . . 1 . . . . . . Repair Stations 7 | . . . . . . 2 . . . . . . 5 . . Recycling Units 3 | . . . . . . . . . . . . . . 1 2 Scanalyzers . | . . . . . . . . . . . . . . . . Garrison Access 4 | . . . . . . . . 3 1 . . . . . . Terminal Hacks 5 | . . . . . . 2 . . 1 . . . . 2 . Open DSF 2 | . . . . . . 1 . . 1 . . . . . . Branch Access Points 1 | . . . . . . . . . . . . . . 1 . Terminal Index 2 | . . . . . . 1 . . . . . . . 1 . Fabricator Hacks 2 | . . . . . . 1 . . 1 . . . . . . Network Status 2 | . . . . . . 1 . . 1 . . . . . . Repair Station Hacks 1 | . . . . . . . . . . . . . 1 . . Refit 1 | . . . . . . . . . . . . . 1 . . Recycling Unit Hacks 1 | . . . . . . . . . . . . . . 1 . Retrieve Components 1 | . . . . . . . . . . . . . . 1 . Scanalyzer . | . . . . . . . . . . . . . . . . Garrison Access Hacks . | . . . . . . . . . . . . . . . . Unauthorized Hacks 3 | . . . . . . 1 . . . . . . 1 1 . Terminals 3 | . . . . . . 1 . . . . . . 1 1 . Track 1 | . . . . . . . . . . . . . 1 . . Botnet 2 | . . . . . . 1 . . . . . . . 1 . Fabricators . | . . . . . . . . . . . . . . . . Repair Stations . | . . . . . . . . . . . . . . . . Recycling Units . | . . . . . . . . . . . . . . . . Scanalyzers . | . . . . . . . . . . . . . . . . Garrison Access . | . . . . . . . . . . . . . . . . Data Cores Recovered . | . . . . . . . . . . . . . . . . Used . | . . . . . . . . . . . . . . . . Hacking Detections 18 | . . . . . 1 4 . 2 2 . . . 2 3 4 Full Trace Events 6 | . . . . . 1 1 . 1 . . . . 1 . 2 Feedback Events . | . . . . . . . . . . . . . . . . Feedback Blocked . | . . . . . . . . . . . . . . . . Robot Schematics Acquired . | . . . . . . . . . . . . . . . . Robots Built . | . . . . . . . . . . . . . . . . Authchips . | . . . . . . . . . . . . . . . . Time . | . . . . . . . . . . . . . . . . Total Robot Build Rating . | . . . . . . . . . . . . . . . . Part Schematics Acquired . | . . . . . . . . . . . . . . . . Parts Built . | . . . . . . . . . . . . . . . . Authchips . | . . . . . . . . . . . . . . . . Time . | . . . . . . . . . . . . . . . . Total Part Build Rating . | . . . . . . . . . . . . . . . . Part Studies Acquired . | . . . . . . . . . . . . . . . . Parts Repaired . | . . . . . . . . . . . . . . . . Time . | . . . . . . . . . . . . . . . . Parts Recycled . | . . . . . . . . . . . . . . . . Recycled Matter . | . . . . . . . . . . . . . . . . Retrieved Matter . | . . . . . . . . . . . . . . . . Retrieved Components . | . . . . . . . . . . . . . . . . Parts Scanalyzed . | . . . . . . . . . . . . . . . . Part Schematics Acquired . | . . . . . . . . . . . . . . . . Parts Damaged . | . . . . . . . . . . . . . . . . Bothacking | -11 -10 -10 -9 -9 -8 -7 -7 -6 -5 -5 -4 -3 -3 -2 -1 ------------ Run | Yrd Mat Min Mat Min Mat Fac DSF Fac Fac DSF Fac Res Tes Res Acc Used RIF Installer . | . . . . . . . . . . . . . . . . Robots Hacked . | . . . . . . . . . . . . . . . . Non-combat . | . . . . . . . . . . . . . . . . Combat . | . . . . . . . . . . . . . . . . Robot Hacks Applied . | . . . . . . . . . . . . . . . . Relay Couplers Released 3 | . . . . . . . . 3 . . . . . . . Machine Destruction 3 | . . . . . . . . 3 . . . . . . . Fabnet Peak Effective % . | . . . . . . . . . . . . . . . . Robots Rewired . | . . . . . . . . . . . . . . . . Allies Hacked . | . . . . . . . . . . . . . . . . Hacks Repelled . | . . . . . . . . . . . . . . . . Allies | -11 -10 -10 -9 -9 -8 -7 -7 -6 -5 -5 -4 -3 -3 -2 -1 -------- Run | Yrd Mat Min Mat Min Mat Fac DSF Fac Fac DSF Fac Res Tes Res Acc Total Allies . | . . . . . . . . . . . . . . . . Largest Group . | . . . . . . . . . . . . . . . . Highest-Rated Group . | . . . . . . . . . . . . . . . . Highest-Rated Ally . | . . . . . . . . . . . . . . . . Initial Warlord ECA Mod 9 | . . . . . . . . 9 8 8 7 6 6 5 4 Total Orders . | . . . . . . . . . . . . . . . . Ally Attacks . | . . . . . . . . . . . . . . . . Total Damage . | . . . . . . . . . . . . . . . . Kills . | . . . . . . . . . . . . . . . . Allies Corrupted . | . . . . . . . . . . . . . . . . Allies Melted . | . . . . . . . . . . . . . . . . Intel | -11 -10 -10 -9 -9 -8 -7 -7 -6 -5 -5 -4 -3 -3 -2 -1 ------- Run | Yrd Mat Min Mat Min Mat Fac DSF Fac Fac DSF Fac Res Tes Res Acc Active Infowar (turns) 389 | . . . . . . . 57 73 . . . . . 44 215 Optics 130 | . . . . . . . 57 73 . . . . . . . Machine Analysis 256 | . . . . . . . . . . . . . . 44 212 Cloaking 223 | . . . . . . . . . . . . . . 8 215 Robot Analysis Total . | . . . . . . . . . . . . . . . . Derelict Logs Recovered . | . . . . . . . . . . . . . . . . Drone Launches . | . . . . . . . . . . . . . . . . Drone Recoveries . | . . . . . . . . . . . . . . . . Exploration | -11 -10 -10 -9 -9 -8 -7 -7 -6 -5 -5 -4 -3 -3 -2 -1 ------------- Run | Yrd Mat Min Mat Min Mat Fac DSF Fac Fac DSF Fac Res Tes Res Acc Turns Passed 1813 | 11 27 53 99 87 177 29 138 150 44 69 141 23 282 117 366 Spaces Moved 3158 | 21 54 106 171 41 313 58 189 248 78 81 231 28 546 300 693 Core 1784 | 21 54 106 171 41 313 58 187 248 78 81 160 28 81 . 157 Treads . | . . . . . . . . . . . . . . . . Legs . | . . . . . . . . . . . . . . . . Wheels . | . . . . . . . . . . . . . . . . Hover 2 | . . . . . . . 2 . . . . . . . . Flight 1372 | . . . . . . . . . . . 71 . 465 300 536 Fastest Speed 20 | 50 50 50 50 50 50 50 50 50 50 50 40 50 20 29 24 Average Speed 41 | 50 50 50 50 50 50 50 50 50 50 50 55 50 31 30 33 Slowest Speed 200 | 50 50 50 50 50 50 50 60 50 50 50 150 50 150 32 200 Overloaded Moves . | . . . . . . . . . . . . . . . . Propulsion Burnouts . | . . . . . . . . . . . . . . . . Robots Hopped 20 | . . . . . . . . . . . 2 . 6 3 9 Potential Cave-ins 9 | . . . . . . . . . . . . . . . 9 Cave-ins Triggered 3 | . . . . . . . . . . . . . . . 3 Exploration Rate (%) 27 | 3 16 42 29 15 38 2 96 12 2 74 11 1 62 14 23 Regions Visited 15 Branch Regions 3 Pre-discovered Areas . | . . . . . . . . . . . . . . . . Known Exits Taken 2 | . . . . . . 1 . . 1 . . . . . . Unknown Exits Taken 11 | 1 1 1 1 1 1 . . 1 . . 1 1 1 1 . Scrap Searched . | . . . . . . . . . . . . . . . . Spaces Dug 48 | . . . . . 2 . 2 2 . . 11 . 4 15 12 Terrain Destroyed 172 | . . . . . 2 . 2 28 . . 25 . 4 36 75 Melee 21 | . . . . . 2 . 2 2 . . . . 4 1 10 Projectile 5 | . . . . . . . . . . . . . . . 5 AOE 146 | . . . . . . . . 26 . . 25 . . 35 60 Terrain Rammed 39 | . . . . . . . . . . . . . . . 39 Walls Destroyed . | . . . . . . . . . . . . . . . . Machines Disabled . | . . . . . . . . . . . . . . . . Actions | -11 -10 -10 -9 -9 -8 -7 -7 -6 -5 -5 -4 -3 -3 -2 -1 --------- Run | Yrd Mat Min Mat Min Mat Fac DSF Fac Fac DSF Fac Res Tes Res Acc Total 3485 | 20 53 105 183 106 323 57 224 260 84 108 237 35 594 312 784 Wait 101 | . . . . 65 . . . . . . . . 9 5 22 Move 3109 | 20 53 105 170 40 312 57 188 247 77 80 227 28 535 293 677 Hop 15 | . . . . . . . . . . . 1 . 4 3 7 Pick Up 9 | . . . 1 1 3 . . . 3 . . . . . 1 Fast Attach 46 | . . . . . 3 . 6 1 1 . 3 5 17 5 5 Attach 6 | . . . . . . . . 1 . . 1 . . . 4 Detach 5 | . . . . . . . . 1 . . 1 . . . 3 Swap . | . . . . . . . . . . . . . . . . Drop 7 | . . . . . . . . . 3 . 1 2 . . 1 Fire 25 | . . . . . . . . 5 . . 3 . . 3 14 Melee 56 | . . . . . 5 . 3 5 . . . . 29 3 11 Ram 51 | . . . 12 . . . . . . . . . . . 39 Kick . | . . . . . . . . . . . . . . . . Crush . | . . . . . . . . . . . . . . . . Escape Stasis 55 | . . . . . . . 27 . . 28 . . . . . Rewire . | . . . . . . . . . . . . . . . . Trap . | . . . . . . . . . . . . . . . . Miscellaneous . | . . . . . . . . . . . . . . . . Route ------- -11/Scrapyard -10/Materials -10/Mines -9/Materials -9/Mines -8/Materials -7/Factory -7/DSF -6/Factory -5/Factory -5/DSF -4/Factory -3/Research -3/Testing -2/Research (discovered 3 exits: *Acc / Qua x2) -1/Access History --------- Turn | Location | Event 5 | -11/Scrapyard | Discovered new exit (range 12) 12 | -11/Scrapyard | Entered Materials 31 | -10/Materials | Discovered new exit (range 7) 39 | -10/Materials | Entered Mines 76 | -10/Mines | Core integrity fell below 50% 88 | -10/Mines | Discovered new exit (range 9) 92 | -10/Mines | Entered Materials 92 | -9/Materials | Evolved 2 slots: Propulsion x1, Utility x1 185 | -9/Materials | Discovered new exit (range 12) 187 | -9/Materials | Core integrity fell below 50% 191 | -9/Materials | Entered Mines 202 | -9/Mines | Excavation squad dispatched 202 | -9/Mines | A large section of the Mines collapsed 268 | -9/Mines | Core integrity fell below 20% 271 | -9/Mines | Discovered new exit (range 6) 274 | -9/Mines | YI-UF0 nonchalantly dropped a Grenade Launcher on the ground 278 | -9/Mines | Entered Materials 278 | -8/Materials | Evolved 2 slots: Propulsion x1, Utility x1 305 | -8/Materials | Build established: Mutant 451 | -8/Materials | Discovered new exit (range 10) 455 | -8/Materials | Entered Factory 455 | -7/Factory | Evolved 2 slots: Propulsion x1, Utility x1 484 | -7/Factory | Identified exit to DSF 484 | -7/Factory | Entered DSF 484 | -7/DSF | Encountered a pitched battle between 0b10 and Warlord forces 489 | -7/DSF | Spotted B-75 Beast 523 | -7/DSF | Sterilization system engaged 532 | -7/DSF | Lost 7 allies 543 | -7/DSF | Ambient heat levels rising (+10) 546 | -7/DSF | Found Prototype Processor 546 | -7/DSF | Identified Exp. Targeting Computer 548 | -7/DSF | Found Exp. Targeting Computer 550 | -7/DSF | Found Exp. Targeting Computer 552 | -7/DSF | Found Exp. Targeting Computer 558 | -7/DSF | Ambient heat levels rising (+10) 571 | -7/DSF | Discovered new exit (range 15) 573 | -7/DSF | Ambient heat levels rising (+10) 588 | -7/DSF | Ambient heat levels rising (+10) 603 | -7/DSF | Ambient heat levels rising (+10) 618 | -7/DSF | Ambient heat levels rising (+10) 622 | -7/DSF | Entered Factory 622 | -6/Factory | Evolved 2 slots: Propulsion x1, Utility x1 765 | -6/Factory | Discovered new exit (range 8) 772 | -6/Factory | Entered another Factory area 772 | -5/Factory | Evolved 2 slots: Power x1, Utility x1 816 | -5/Factory | Identified exit to DSF 816 | -5/Factory | Entered DSF 849 | -5/DSF | Additional patrols routed to DSF 849 | -5/DSF | Discovered new exit (range 16) 885 | -5/DSF | Entered Factory 885 | -4/Factory | Evolved 2 slots: Propulsion x1, Utility x1 960 | -4/Factory | Spotted B-86 Titan 996 | -4/Factory | Core integrity fell below 50% 1020 | -4/Factory | Discovered new exit (range 11) 1026 | -4/Factory | Entered Research 1026 | -3/Research | Evolved 2 slots: Propulsion x1, Utility x1 1046 | -3/Research | Discovered new exit (range 7) 1049 | -3/Research | Entered Testing 1091 | -3/Testing | Found Prototype Hackware 1091 | -3/Testing | Identified Ghost Barrier 1179 | -3/Testing | Spotted Superbehemoth 1198 | -3/Testing | Found Prototype Device 1198 | -3/Testing | Identified Exp. Shield Generator 1264 | -3/Testing | Found Prototype Launcher 1264 | -3/Testing | Identified Adv. Micro-nuke Launcher 1325 | -3/Testing | Discovered new exit (range 14) 1331 | -3/Testing | Entered Research 1331 | -2/Research | Evolved 2 slots: Propulsion x1, Utility x1 1336 | -2/Research | Lost 8 parts (2p5n1u) 1355 | -2/Research | Identified exit to Quarantine 1445 | -2/Research | Discovered new exit (range 10) 1448 | -2/Research | Entered Access 1448 | -1/Access | Evolved 2 slots: Power x1, Propulsion x1 1521 | -1/Access | Spotted B-99 Colossus 1645 | -1/Access | Crushed by falling debris 1645 | -1/Access | System corruption reached 10% 1658 | -1/Access | Crushed by falling debris 1662 | -1/Access | System corruption reached 30% 1676 | -1/Access | Crushed by falling debris 1681 | -1/Access | Core integrity fell below 50% 1723 | -1/Access | Lost 15 parts (3p3n7u2w) 1727 | -1/Access | Core integrity fell below 20% 1758 | -1/Access | Energy Cycler disabled 1814 | -1/Access | Destroyed by Hellfire Trap Last Messages --------------- dispatching reinforcements to area. 01788_ System corrupted: Hvy. Rocket Launcher failed to launch. 01790_ Hvy. Rocket Launcher destroyed. 01790_ Destroyed Hvy. Rocket Launcher. 01790_ K-01 Serf destroyed. 01790_ S-43 Plague destroyed. 01794_ Slug penetrates Terminal. 01794_ Slug penetrates Wall. 01796_ Acquired 13 matter. 01797_ The unstable cave ceiling collapses. 01798_ System corrupted: Matter fused (-8). 01798_ The unstable cave ceiling collapses. 01798_ Penetrated by Slug. 01799_ K-01 Serf collects debris. 01800_ The unstable cave ceiling collapses. 01810_ T-07 Excavator destroyed. 01813_ YLTIW%FW MS0&